bitfinex-derivatives/quotes_BTCF0:USTF0_20240913
["timestamp","ask_amount","ask_price","bid_price","bid_amount"]
[1726242373395,0.084083,59456.0,59455.0,0.001]
[1726242373796,0.083083,59456.0,59455.0,0.084084]
[1726242374193,0.084087,59453.0,59452.0,0.3608]
[1726242374398,0.084087,59453.0,59452.0,0.444888]
[1726242374399,0.36255644,59453.0,59452.0,0.444888]
[1726242374595,0.36155644,59453.0,59452.0,0.084088]
[1726242374797,0.36155644,59453.0,59452.0,0.444888]
[1726242374998,0.36155644,59453.0,59452.0,0.084088]
[1726242375595,0.27846944,59453.0,59444.0,0.3608]
[1726242375904,0.084096,59449.0,59448.0,0.084091]
[1726242376706,0.354096,59449.0,59448.0,0.084091]
[1726242377499,0.084098,59445.0,59444.0,0.3628]
[1726242377703,0.168196,59445.0,59444.0,0.002]
[1726242377999,0.3608,59447.0,59443.0,0.0841]
[1726242378000,0.0841,59444.0,59443.0,0.0841]
[1726242378203,0.3541,59444.0,59443.0,0.0841]
[1726242378507,0.084095,59448.0,59440.0,0.13268176]
[1726242378800,0.084095,59448.0,59447.0,0.084095]
[1726242379313,0.00838795,59449.0,59448.0,0.084094]
[1726242379605,0.00838795,59449.0,59444.0,0.002]
[1726242379606,0.00846944,59453.0,59452.0,0.084088]
[1726242379792,0.084087,59453.0,59452.0,0.084088]
[1726242379997,0.09263241,59453.0,59452.0,0.084088]
[1726242380191,0.09263241,59453.0,59446.0,0.4922]
[1726242380192,0.084093,59449.0,59448.0,0.084093]
[1726242380995,0.084093,59449.0,59446.0,0.4922]
[1726242380996,0.09263241,59453.0,59452.0,0.084088]
[1726242381700,0.084094,59449.0,59448.0,0.084092]
[1726242382204,0.084094,59449.0,59448.0,0.085092]
[1726242382595,0.00854541,59453.0,59449.0,0.084093]
[1726242382906,0.08408,59458.0,59457.0,0.084081]
[1726242383307,0.084076,59461.0,59460.0,0.084076]
[1726242383605,0.27,59464.0,59461.0,0.084076]
[1726242383798,0.36928234,59462.0,59461.0,0.084076]
[1726242383998,0.45335634,59462.0,59461.0,0.084076]
[1726242384308,0.45335634,59462.0,59454.0,0.4751]
[1726242384309,0.084079,59459.0,59458.0,0.084079]
[1726242384615,0.084076,59461.0,59460.0,0.001]
[1726242384804,0.084076,59461.0,59460.0,0.085077]
[1726242385210,0.084076,59461.0,59460.0,0.084077]
[1726242386712,0.084078,59459.0,59458.0,0.001]
[1726242387013,0.084086,59456.0,59455.0,0.084083]
[1726242387199,0.444886,59456.0,59455.0,0.084083]
[1726242387911,0.3608,59456.0,59455.0,0.13265976]
[1726242388107,0.36911507,59456.0,59455.0,0.13265976]
[1726242388414,0.00831507,59456.0,59455.0,0.168167]
[1726242388602,0.084065,59469.0,59468.0,0.084066]
[1726242388807,0.08406,59472.0,59471.0,0.08406]
[1726242389405,0.09257302,59473.0,59472.0,0.08406]
[1726242390607,0.09257302,59473.0,59472.0,0.08506]
[1726242391010,0.084059,59473.0,59472.0,0.08506]
[1726242392022,0.354059,59473.0,59472.0,0.001]
[1726242392411,0.354059,59473.0,59472.0,0.08506]
[1726242392619,0.084059,59473.0,59472.0,0.08506]
[1726242397111,0.168118,59473.0,59472.0,0.001]
[1726242397313,0.084059,59473.0,59472.0,0.08506]
[1726242400421,0.444855,59476.0,59475.0,0.084056]
[1726242401428,0.084059,59474.0,59473.0,0.084058]
[1726242402617,0.084059,59474.0,59473.0,0.085058]
[1726242407627,0.168118,59474.0,59473.0,0.001]
[1726242408244,0.084077,59462.0,59461.0,0.084074]
[1726242408427,0.084077,59462.0,59454.0,0.8532]
[1726242408428,0.084084,59455.0,59454.0,0.084085]
[1726242408734,0.09232956,59455.0,59454.0,0.084085]
[1726242409548,0.19824556,59455.0,59450.0,0.0487153]
[1726242409731,0.19824556,59455.0,59449.0,0.0039]
[1726242409732,0.084091,59450.0,59449.0,0.0039]
[1726242409926,0.0841,59444.0,59443.0,0.084101]
[1726242410135,0.084104,59441.0,59439.0,0.0487153]
[1726242410340,0.084104,59441.0,59439.0,0.084106]
[1726242410640,0.084105,59440.0,59439.0,0.084106]
[1726242411341,0.083105,59440.0,59439.0,0.084106]
[1726242412132,0.084105,59440.0,59439.0,0.085106]
[1726242412437,0.472,59448.0,59439.0,0.085106]
[1726242412438,0.08409,59451.0,59449.0,0.084093]
[1726242412638,0.084079,59459.0,59456.0,0.084082]
[1726242412827,1.4102,59466.0,59457.0,0.3608]
[1726242413031,0.08408,59459.0,59458.0,0.084079]
[1726242413241,0.08408,59459.0,59452.0,0.084088]
[1726242413242,0.3608,59459.0,59452.0,0.084088]
[1726242413444,0.27,59458.0,59452.0,0.084088]
[1726242413630,0.084085,59455.0,59452.0,0.084088]
[1726242413829,0.084086,59454.0,59450.0,0.85464]
[1726242414033,0.084086,59454.0,59453.0,0.084087]
[1726242414432,0.3608,59459.0,59450.0,0.49396]
[1726242414739,0.084081,59457.0,59450.0,0.4914]
[1726242414936,0.084084,59455.0,59454.0,0.084085]
[1726242415138,0.09266458,59455.0,59454.0,0.084085]
[1726242416244,0.10666458,59455.0,59454.0,0.085085]
[1726242417042,0.06460623,59455.0,59454.0,0.085085]
[1726242417230,0.014,59455.0,59454.0,0.085085]
[1726242417436,0.084063,59471.0,59455.0,0.50456]
[1726242417640,0.084063,59470.0,59469.0,0.084064]
[1726242417943,0.3608,59472.0,59471.0,0.084061]
[1726242418340,0.36896796,59472.0,59471.0,0.084061]
[1726242419346,0.00816796,59472.0,59471.0,0.444861]
[1726242419546,0.444852,59478.0,59475.0,0.084056]
[1726242419839,0.084053,59477.0,59471.0,0.3618]
[1726242420240,0.084053,59477.0,59476.0,0.084054]
[1726242420442,0.084059,59473.0,59472.0,0.08406]
[1726242420648,0.63928927,59478.0,59471.0,0.3618]
[1726242420837,0.63928927,59478.0,59471.0,0.002]
[1726242421034,0.63928927,59478.0,59472.0,0.08406]
[1726242421247,0.36928927,59478.0,59471.0,0.002]
[1726242421439,0.00848927,59478.0,59477.0,0.084053]
[1726242421643,0.9539,59481.0,59475.0,0.3608]
[1726242421644,1.037948,59481.0,59480.0,0.084049]
[1726242421851,0.084059,59473.0,59472.0,0.001]
[1726242422442,0.084061,59472.0,59471.0,0.001]
[1726242422642,0.354061,59472.0,59471.0,0.001]
[1726242422943,1.219301,59472.0,59471.0,0.001]
[1726242423941,0.714861,59472.0,59471.0,0.001]
[1726242424138,0.084058,59474.0,59461.0,0.3608]
[1726242424444,0.084058,59474.0,59468.0,0.3608]
[1726242424836,0.3608,59478.0,59468.0,0.3608]
[1726242424837,0.444852,59478.0,59468.0,0.3608]
[1726242425036,0.3608,59478.0,59471.0,0.001]
[1726242425234,0.36927088,59478.0,59471.0,0.001]
[1726242425436,0.084056,59475.0,59474.0,0.084057]
[1726242425747,0.27,59476.0,59463.0,0.4574]
[1726242425953,0.354062,59471.0,59468.0,0.001]
[1726242426747,0.354062,59471.0,59470.0,0.084063]
[1726242427548,0.084066,59468.0,59461.0,0.3608]
[1726242427847,0.084066,59468.0,59467.0,0.444867]
[1726242428149,0.3608,59478.0,59467.0,0.3608]
[1726242428448,0.084056,59476.0,59474.0,0.084056]
[1726242429150,0.084056,59475.0,59474.0,0.084056]
[1726242429653,0.084061,59471.0,59470.0,0.002]
[1726242429947,0.084061,59471.0,59460.0,0.0039]
[1726242429948,0.084077,59461.0,59460.0,0.084077]
[1726242431143,0.3608,59471.0,59458.0,0.3608]
[1726242431348,0.084063,59470.0,59469.0,0.084063]
[1726242431849,1.2741,59477.0,59471.0,0.084061]
[1726242433048,0.084058,59474.0,59473.0,0.084055]
[1726242433248,1.358153,59477.0,59471.0,0.001]
[1726242433440,0.084056,59476.0,59475.0,0.084056]
[1726242434550,1.2761,59477.0,59471.0,0.08606]
[1726242434751,0.27,59473.0,59471.0,0.08606]
[1726242434947,0.08406,59472.0,59471.0,0.001]
[1726242435761,0.084067,59467.0,59466.0,0.084068]
[1726242436054,0.084062,59471.0,59469.0,0.084063]
[1726242436258,0.002,59476.0,59471.0,0.001]
[1726242436455,0.086055,59476.0,59475.0,0.084056]
[1726242436754,0.08406,59472.0,59471.0,0.002]
[1726242436947,0.08406,59472.0,59471.0,0.001]
[1726242437351,0.44486,59472.0,59471.0,0.085061]
[1726242437550,0.085055,59476.0,59475.0,0.085054]
[1726242438451,0.084055,59476.0,59475.0,0.084054]
[1726242438655,0.3608,59477.0,59471.0,0.002]
[1726242438848,0.27,59473.0,59471.0,0.002]
[1726242439051,0.08406,59472.0,59471.0,0.002]
[1726242439554,0.08406,59472.0,59471.0,0.085061]
[1726242439854,0.00841044,59478.0,59477.0,0.084053]
[1726242440046,0.084049,59480.0,59479.0,0.08405]
[1726242440252,0.4743,59484.0,59482.0,0.084045]
[1726242440253,0.084045,59483.0,59482.0,0.084045]
[1726242440651,0.084045,59483.0,59476.0,0.3608]
[1726242440652,0.084049,59480.0,59479.0,0.08405]
[1726242441362,0.00854236,59484.0,59483.0,0.084045]
[1726242441555,0.00851503,59485.0,59477.0,0.001]
[1726242441556,0.3608,59486.0,59477.0,0.001]
[1726242441751,0.001,59480.0,59479.0,0.08505]
[1726242441955,0.09340578,59480.0,59479.0,0.08505]
[1726242442148,0.085049,59480.0,59479.0,0.08505]
[1726242442757,0.09337298,59480.0,59479.0,0.08505]
[1726242442957,0.09337298,59480.0,59479.0,0.001]
[1726242443351,0.87348398,59480.0,59469.0,0.084064]
[1726242443563,0.87348398,59480.0,59470.0,0.084063]
[1726242443564,0.274063,59471.0,59470.0,0.084063]
[1726242443963,0.19,59471.0,59470.0,0.084063]
[1726242444166,0.084066,59469.0,59468.0,0.084066]
[1726242444852,0.19,59471.0,59470.0,0.084063]
[1726242444853,0.084061,59471.0,59470.0,0.084063]
[1726242445062,0.962,59474.0,59473.0,0.084059]
[1726242445260,1.046057,59474.0,59473.0,0.084059]
[1726242445657,0.3608,59475.0,59474.0,0.084057]
[1726242445957,0.19,59479.0,59472.0,0.3608]
[1726242445958,0.084051,59479.0,59472.0,0.3608]
[1726242446161,0.084051,59479.0,59476.0,0.084053]
[1726242446162,0.084053,59477.0,59476.0,0.084053]
[1726242447267,0.084056,59475.0,59474.0,0.001]
[1726242447458,0.084056,59475.0,59474.0,0.084057]
[1726242447659,0.084056,59475.0,59469.0,0.4565]
[1726242447660,0.001,59477.0,59476.0,0.084054]
[1726242449364,0.00836127,59479.0,59478.0,0.084052]
[1726242449563,0.08405,59479.0,59478.0,0.084052]
[1726242450158,0.08405,59479.0,59476.0,0.001]
[1726242450159,0.001,59477.0,59476.0,0.086054]
[1726242450962,0.085053,59477.0,59476.0,0.086054]
[1726242451163,0.001,59479.0,59478.0,0.084052]
[1726242451566,0.08505,59479.0,59478.0,0.084052]
[1726242452073,0.00961514,59479.0,59478.0,0.084052]
[1726242452267,0.09366514,59479.0,59478.0,0.084052]
[1726242452772,0.09266514,59479.0,59478.0,0.084052]
[1726242453566,0.09266514,59479.0,59478.0,0.085052]
[1726242453768,0.00961514,59479.0,59478.0,0.086052]
[1726242454359,0.09366514,59479.0,59478.0,0.086052]
[1726242454660,0.36771514,59479.0,59478.0,0.002]
[1726242456662,0.45176514,59479.0,59478.0,0.002]
[1726242456858,0.36771514,59479.0,59478.0,0.002]
[1726242458362,0.45176514,59479.0,59478.0,0.002]
[1726242458869,0.36771514,59479.0,59478.0,0.002]
[1726242459572,0.68211514,59479.0,59478.0,0.002]
[1726242459774,0.87211514,59479.0,59478.0,0.002]
[1726242460075,0.45176514,59479.0,59478.0,0.002]
[1726242460375,0.36771514,59479.0,59478.0,0.002]
[1726242462178,0.09366514,59479.0,59478.0,0.002]
[1726242462378,0.36771514,59479.0,59478.0,0.002]
[1726242462773,0.09366514,59479.0,59478.0,0.002]
[1726242463290,0.09366514,59479.0,59478.0,0.086052]
[1726242463477,0.19961514,59479.0,59469.0,0.04856178]
[1726242463771,0.084061,59472.0,59471.0,0.08406]
[1726242465479,0.084061,59472.0,59471.0,0.13262178]
[1726242465884,0.00844666,59472.0,59471.0,0.084061]
[1726242466076,0.084057,59475.0,59470.0,0.4926]
[1726242466270,0.001,59479.0,59473.0,0.04863421]
[1726242466581,0.001,59479.0,59471.0,0.6661]
[1726242466582,0.00816249,59479.0,59478.0,0.084052]
[1726242466781,0.084044,59484.0,59482.0,0.084045]
[1726242466981,0.00846654,59483.0,59477.0,0.19]
[1726242467181,0.084041,59486.0,59478.0,0.04863421]
[1726242467487,0.084041,59486.0,59485.0,0.084042]
[1726242467488,0.0082353,59486.0,59485.0,0.084042]
[1726242467684,0.36909872,59487.0,59486.0,0.08404]
[1726242468292,0.3776485,59487.0,59486.0,0.08404]
[1726242469188,0.4616875,59487.0,59486.0,0.08404]
[1726242469989,0.4636875,59487.0,59486.0,0.08604]
[1726242470184,0.3608,59508.0,59486.0,1.4644]
[1726242470387,0.36927074,59508.0,59507.0,0.084011]
[1726242470887,0.36927074,59508.0,59503.0,0.3608]
[1726242470888,0.3777307,59508.0,59503.0,0.3608]
[1726242471196,0.3777307,59508.0,59507.0,1.2]
[1726242471197,0.4617397,59508.0,59507.0,1.2]
[1726242471375,0.5697307,59508.0,59507.0,1.2]
[1726242471994,0.5697307,59508.0,59507.0,1.284011]
[1726242472880,0.5677307,59508.0,59507.0,1.285011]
[1726242473283,0.36925996,59508.0,59507.0,1.201]
[1726242473483,0.01682724,59508.0,59507.0,1.285011]
[1726242473795,0.19,59511.0,59509.0,0.084006]
[1726242473997,0.19846564,59511.0,59508.0,0.3608]
[1726242474291,0.19846564,59511.0,59510.0,0.084006]
[1726242474487,0.00846564,59511.0,59510.0,0.084006]
[1726242474685,0.3608,59517.0,59510.0,0.084006]
[1726242474686,0.273999,59515.0,59510.0,0.084006]
[1726242474885,0.28247893,59515.0,59510.0,0.084006]
[1726242475284,0.19847993,59515.0,59508.0,0.3608]
[1726242475479,0.19847993,59515.0,59509.0,0.4542]
[1726242475989,0.19847993,59515.0,59510.0,0.4689]
[1726242476179,0.19847993,59515.0,59514.0,0.084001]
[1726242477489,0.00762989,59517.0,59514.0,0.085001]
[1726242477678,0.36922161,59522.0,59520.0,0.083992]
[1726242478089,0.00842161,59522.0,59521.0,0.444791]
[1726242478284,0.99548103,59532.0,59521.0,0.444791]
[1726242478589,0.083984,59526.0,59522.0,0.083989]
[1726242478789,0.19,59523.0,59518.0,0.083994]
[1726242478989,0.19,59523.0,59514.0,0.002]
[1726242478990,0.083989,59523.0,59519.0,0.083993]
[1726242479198,0.19,59520.0,59515.0,0.083998]
[1726242479383,0.3608,59525.0,59514.0,0.002]
[1726242479384,0.273999,59515.0,59514.0,0.002]
[1726242480398,0.273999,59515.0,59502.0,0.9663]
[1726242480399,0.084014,59505.0,59502.0,0.563018]
[1726242480796,0.084025,59497.0,59496.0,0.4894]
[1726242481096,0.19823588,59497.0,59492.0,0.4599]
[1726242481283,0.084036,59489.0,59479.0,0.0039]
[1726242481488,0.19,59488.0,59478.0,1.20244]
[1726242481796,0.19,59488.0,59480.0,0.00759019]
[1726242482201,0.19,59488.0,59478.0,1.20244]
[1726242482494,0.3608,59496.0,59490.0,0.084034]
[1726242482690,0.3608,59496.0,59492.0,0.084032]
[1726242482995,0.084025,59497.0,59496.0,0.085026]
[1726242482996,0.001,59497.0,59496.0,0.085026]
[1726242483194,0.00761033,59500.0,59499.0,0.084022]
[1726242483492,0.36925749,59507.0,59502.0,0.001]
[1726242483695,0.003,59505.0,59504.0,0.084015]
[1726242484183,0.36858696,59507.0,59506.0,0.084012]
[1726242484588,0.45246661,59566.0,59506.0,0.084012]
[1726242484589,0.9651,59526.0,59518.0,0.083995]
[1726242484792,0.9651,59526.0,59521.0,0.3608]
[1726242484793,1.2351,59526.0,59521.0,0.3608]
[1726242485095,0.27,59522.0,59509.0,0.3647]
[1726242485291,0.3608,59514.0,59510.0,1.2]
[1726242485491,0.3608,59515.0,59510.0,1.6695]
[1726242485691,0.3608,59515.0,59512.0,0.084003]
[1726242485895,0.3608,59521.0,59512.0,0.084003]
[1726242485896,0.6308,59521.0,59512.0,0.3608]
[1726242486096,0.3608,59521.0,59519.0,0.083993]
[1726242486299,0.01595533,59526.0,59521.0,0.08399]
[1726242486598,0.27,59527.0,59521.0,0.08399]
[1726242486896,0.27,59522.0,59521.0,0.08399]
[1726242487294,0.014,59526.0,59521.0,0.08399]
[1726242487496,0.27,59522.0,59521.0,0.08599]
[1726242488089,0.27,59522.0,59521.0,0.002]
[1726242488090,1.818789,59522.0,59521.0,0.002]
[1726242488389,0.714789,59522.0,59521.0,0.002]
[1726242488891,0.714789,59522.0,59521.0,0.001]
[1726242489090,0.728789,59522.0,59521.0,0.002]
[1726242489390,0.73650649,59522.0,59521.0,0.002]
[1726242491597,0.65251749,59522.0,59521.0,0.085991]
[1726242492087,0.02171749,59522.0,59521.0,0.085991]
[1726242493900,0.10570649,59522.0,59521.0,0.002]
[1726242494091,0.10570649,59522.0,59509.0,0.3568]
[1726242494092,0.084004,59513.0,59509.0,0.3568]
[1726242494300,0.084004,59513.0,59508.0,0.00248]
[1726242494301,0.084008,59509.0,59508.0,0.00248]
[1726242494596,0.084008,59509.0,59507.0,0.084009]
[1726242494799,0.00826086,59509.0,59504.0,0.3608]
[1726242495010,0.084,59515.0,59505.0,0.496]
[1726242495300,0.00835076,59514.0,59505.0,0.496]
[1726242495490,0.27,59519.0,59505.0,0.496]
[1726242495692,0.27838857,59519.0,59505.0,0.496]
[1726242495991,0.003,59509.0,59508.0,0.085009]
[1726242496602,0.003,59509.0,59508.0,1.285009]
[1726242497098,0.003,59509.0,59508.0,1.286009]
[1726242497893,0.01080077,59509.0,59508.0,1.286009]
[1726242498098,0.01080077,59509.0,59508.0,0.086009]
[1726242498322,0.27780077,59509.0,59508.0,0.085009]
[1726242498511,0.27780077,59509.0,59508.0,0.001]
[1726242498810,0.36180877,59509.0,59508.0,0.085009]
[1726242498997,0.28280077,59509.0,59508.0,0.086009]
[1726242499495,0.084014,59505.0,59502.0,0.084017]
[1726242499806,0.6308,59503.0,59502.0,0.084017]
[1726242500108,0.084018,59502.0,59499.0,0.084022]
[1726242500298,0.09238965,59502.0,59499.0,0.084022]
[1726242500494,0.08402,59501.0,59499.0,0.084022]
[1726242500907,0.08402,59501.0,59500.0,0.084021]
[1726242501101,0.3608,59503.0,59496.0,1.26640873]
[1726242501304,0.3608,59503.0,59497.0,0.06456873]
[1726242501600,0.36929355,59503.0,59497.0,0.06456873]
[1726242502294,0.46101973,59503.0,59502.0,0.085018]
[1726242502698,0.01620373,59503.0,59502.0,0.085018]
[1726242502901,0.01620373,59503.0,59502.0,0.084018]
[1726242502902,0.006,59503.0,59502.0,0.084018]
[1726242503108,0.0143448,59503.0,59502.0,0.084018]
[1726242503302,0.4657,59508.0,59500.0,0.3608]
[1726242503303,0.47342645,59508.0,59500.0,0.3608]
[1726242503507,0.006,59503.0,59502.0,0.001]
[1726242503810,0.47342645,59508.0,59507.0,0.084011]
[1726242503811,0.48169058,59508.0,59507.0,0.084011]
[1726242504901,0.48269058,59508.0,59507.0,0.085011]
[1726242506006,0.48269058,59508.0,59507.0,0.086011]
[1726242508905,0.56669958,59508.0,59507.0,0.002]
[1726242509118,1.01150858,59508.0,59507.0,0.002]
[1726242509311,0.084019,59501.0,59496.0,1.2]
[1726242509513,0.084022,59499.0,59498.0,0.084023]
[1726242509718,0.19,59500.0,59499.0,0.084022]
[1726242510011,0.19,59504.0,59496.0,1.2018]
[1726242510211,0.84437058,59508.0,59503.0,0.5508]
[1726242510212,0.01787058,59508.0,59503.0,0.5508]
[1726242510420,0.3608,59522.0,59520.0,0.083992]
[1726242510604,0.083992,59521.0,59520.0,0.083992]
[1726242510808,0.00832995,59521.0,59515.0,0.083998]
[1726242511016,0.19,59520.0,59516.0,1.2]
[1726242511212,0.083995,59518.0,59516.0,1.2]
[1726242511519,0.19837702,59520.0,59517.0,0.083997]
[1726242511714,0.19837702,59520.0,59519.0,0.083994]
[1726242512606,0.19837702,59520.0,59516.0,1.20172]
[1726242512607,0.28236902,59520.0,59516.0,1.20172]
[1726242512912,0.19837702,59520.0,59519.0,0.083994]
[1726242513112,0.20037702,59520.0,59519.0,0.083994]
[1726242513314,0.20037702,59520.0,59519.0,0.084994]
[1726242513812,0.20037702,59520.0,59519.0,0.083994]
[1726242514519,0.20037702,59520.0,59519.0,0.084994]
[1726242514813,0.01037702,59520.0,59519.0,0.085994]
[1726242516221,0.09436902,59520.0,59519.0,0.002]
[1726242516404,0.09436902,59520.0,59519.0,0.085994]
[1726242516604,0.78840902,59520.0,59519.0,0.002]
[1726242516918,0.28436902,59520.0,59504.0,0.3647]
[1726242517110,0.19,59510.0,59509.0,0.084008]
[1726242517310,0.14798036,59510.0,59509.0,0.084008]
[1726242518004,0.084018,59503.0,59499.0,0.06456873]
[1726242518213,0.19,59500.0,59499.0,0.084022]
[1726242518813,0.274021,59500.0,59499.0,0.084022]
[1726242519013,0.084021,59500.0,59499.0,0.084022]
[1726242519817,0.084021,59500.0,59499.0,0.085022]
[1726242520019,0.084021,59500.0,59499.0,0.001]
[1726242520217,0.003,59500.0,59499.0,0.192]
[1726242520521,0.00088,59512.0,59511.0,0.084005]
[1726242520711,0.3608,59522.0,59509.0,0.084008]
[1726242520712,0.19837702,59520.0,59509.0,0.3608]
[1726242521020,0.083999,59515.0,59514.0,0.084]
[1726242521219,0.5508,59516.0,59506.0,0.4637]
[1726242521426,0.274004,59512.0,59506.0,0.4637]
[1726242521612,0.084008,59509.0,59506.0,0.4637]
[1726242521812,0.19,59516.0,59506.0,1.2]
[1726242522010,0.19,59521.0,59507.0,0.4637]
[1726242522322,0.01641647,59522.0,59520.0,0.083992]
[1726242522523,0.6803,59524.0,59520.0,0.083992]
[1726242522716,0.4903,59524.0,59520.0,0.083992]
[1726242522917,0.19,59521.0,59520.0,0.083992]
[1726242523627,0.19,59521.0,59520.0,0.084992]
[1726242524125,0.27,59523.0,59520.0,0.085992]
[1726242524324,0.083991,59521.0,59520.0,0.002]
[1726242525609,0.353991,59521.0,59520.0,0.002]
[1726242525811,0.083991,59521.0,59520.0,0.002]
[1726242526115,0.3608,59522.0,59521.0,0.083991]
[1726242526715,0.0162801,59524.0,59520.0,0.002]
[1726242526915,0.4706,59531.0,59520.0,0.002]
[1726242527117,0.083982,59527.0,59526.0,0.083984]
[1726242527321,0.09238243,59527.0,59526.0,0.083984]
[1726242528622,0.00840043,59527.0,59526.0,0.083984]
[1726242528816,0.444765,59540.0,59523.0,0.3608]
[1726242529017,0.444765,59540.0,59529.0,0.083979]
[1726242529018,0.27,59537.0,59529.0,0.083979]
[1726242529212,0.27,59537.0,59523.0,0.3608]
[1726242529418,0.083977,59531.0,59523.0,0.3608]
[1726242529615,0.444777,59531.0,59526.0,0.001]
[1726242529816,0.083975,59532.0,59526.0,0.001]
[1726242530116,0.083977,59531.0,59530.0,0.083977]
[1726242530316,0.083978,59530.0,59529.0,0.001]
[1726242530616,0.083978,59530.0,59526.0,0.001]
[1726242530828,0.083978,59530.0,59529.0,0.08398]
[1726242532520,0.09155437,59530.0,59529.0,0.08398]
[1726242532725,0.00757637,59530.0,59529.0,0.08398]
[1726242532922,0.083978,59531.0,59530.0,0.083978]
[1726242533512,0.45323562,59534.0,59529.0,0.001]
[1726242533718,0.083978,59530.0,59529.0,0.001]
[1726242534320,0.167956,59530.0,59529.0,0.001]
[1726242534526,0.083978,59530.0,59529.0,0.001]
[1726242534824,0.083978,59530.0,59529.0,0.08598]
[1726242535724,0.083978,59530.0,59529.0,0.08498]
[1726242536423,0.083978,59530.0,59529.0,0.08598]
[1726242537015,0.083978,59530.0,59529.0,0.002]
[1726242537218,0.167956,59530.0,59529.0,0.002]
[1726242539517,0.767956,59530.0,59529.0,0.002]
[1726242539717,0.3608,59533.0,59523.0,0.083987]
[1726242539918,0.083988,59524.0,59523.0,0.083987]
[1726242540320,0.08399,59522.0,59520.0,0.083992]
[1726242540521,0.08399,59522.0,59515.0,0.4932]
[1726242540834,0.083987,59524.0,59523.0,0.084988]
[1726242541031,0.444785,59526.0,59525.0,0.083985]
[1726242541232,0.083987,59524.0,59523.0,0.001]
[1726242541926,0.083987,59524.0,59523.0,0.084988]
[1726242542318,0.36708566,59526.0,59525.0,0.083985]
[1726242542518,0.45106966,59526.0,59525.0,0.083985]
[1726242543833,0.45106966,59526.0,59525.0,0.084985]
[1726242544025,0.36708566,59526.0,59525.0,0.084985]
[1726242544630,0.36708566,59526.0,59525.0,0.085985]
[1726242544832,0.45106966,59526.0,59525.0,0.085985]
[1726242546324,0.36708566,59526.0,59525.0,0.085985]
[1726242547028,0.55708566,59526.0,59525.0,0.085985]
[1726242547532,0.36708566,59526.0,59525.0,0.16997]
[1726242547830,0.00628566,59526.0,59525.0,0.16997]
[1726242548033,0.083977,59531.0,59530.0,0.083975]
[1726242548423,0.36714173,59533.0,59532.0,0.083975]
[1726242548822,0.55714173,59533.0,59532.0,0.083975]
[1726242549535,0.64111573,59533.0,59532.0,0.083975]
[1726242549727,0.55714173,59533.0,59532.0,0.083975]
[1726242550430,0.97062,59536.0,59532.0,0.083975]
[1726242550431,0.00092,59536.0,59535.0,0.167942]
[1726242550632,0.083962,59542.0,59539.0,0.083965]
[1726242550830,0.36917807,59540.0,59539.0,0.083965]
[1726242551336,0.00837807,59540.0,59539.0,0.083965]
[1726242551535,0.19,59540.0,59539.0,0.083964]
[1726242551740,0.083973,59536.0,59535.0,0.083971]
[1726242551931,0.273973,59536.0,59535.0,0.083971]
[1726242552235,0.273973,59536.0,59532.0,0.002]
[1726242552236,0.083974,59533.0,59532.0,0.085973]
[1726242552533,0.083974,59533.0,59532.0,0.001]
[1726242552735,0.273974,59533.0,59532.0,0.001]
[1726242552938,0.3608,59534.0,59532.0,0.001]
[1726242553141,0.3608,59534.0,59533.0,0.083974]
[1726242553348,0.5508,59534.0,59533.0,0.083974]
[1726242553640,0.634773,59534.0,59533.0,0.083974]
[1726242554031,0.273973,59534.0,59533.0,0.083974]
[1726242554536,0.36920952,59540.0,59533.0,0.50392]
[1726242554537,0.45317452,59540.0,59533.0,0.50392]
[1726242554741,0.37541202,59540.0,59539.0,0.083965]
[1726242554936,0.01461202,59540.0,59539.0,0.76793]
[1726242555239,0.273954,59547.0,59546.0,0.083956]
[1726242555437,0.19,59547.0,59546.0,0.083956]
[1726242555631,0.20455567,59547.0,59546.0,0.083956]
[1726242556038,0.083963,59543.0,59542.0,0.08396]
[1726242556236,0.273963,59543.0,59542.0,0.08396]
[1726242556432,0.0923042,59543.0,59542.0,0.08396]
[1726242556632,0.2823042,59543.0,59542.0,0.08396]
[1726242557936,0.2823042,59543.0,59542.0,0.08496]
[1726242558134,0.2823042,59543.0,59542.0,0.08596]
[1726242558539,0.28837568,59543.0,59542.0,0.002]
[1726242558840,0.18233868,59543.0,59542.0,0.002]
[1726242559039,0.37233868,59543.0,59542.0,0.002]
[1726242559236,0.09837568,59543.0,59542.0,0.002]
[1726242559431,0.37233868,59543.0,59542.0,0.002]
[1726242560050,0.083966,59539.0,59531.0,0.4943]
[1726242560233,0.28837568,59543.0,59531.0,0.578277]
[1726242560234,0.19,59532.0,59531.0,0.578277]
[1726242560738,0.083975,59532.0,59531.0,0.578277]
[1726242560942,0.273975,59532.0,59531.0,0.578277]
[1726242561137,0.19,59532.0,59531.0,0.578277]
[1726242561441,0.19,59532.0,59531.0,0.579277]
[1726242561944,0.273975,59532.0,59531.0,0.579277]
[1726242562146,0.273975,59532.0,59531.0,0.580277]
[1726242562347,0.31594709,59532.0,59531.0,0.002]
[1726242562648,0.00834091,59535.0,59531.0,0.50592]
[1726242562944,0.36710559,59537.0,59534.0,0.083973]
[1726242563251,0.00630559,59537.0,59536.0,0.16794]
[1726242563550,0.19,59540.0,59539.0,0.083965]
[1726242563551,0.19820065,59540.0,59539.0,0.083965]
[1726242564139,0.20450066,59540.0,59539.0,0.083965]
[1726242564845,0.00630001,59540.0,59539.0,0.083965]